[Event "*** Titled Tuesday Blitz"]
[Site "Chess.com"]
[Date "2021.04.06"]
[Round "11"]
[White "HackingKid98"]
[Black "K_A_S_T_O_R"]
[Result "0-1"]
[WhiteElo "2498"]
[BlackElo "2765"]
[TimeControl "180+1"]
[EndTime "12:07:59 PDT"]
[Termination "K_A_S_T_O_R won on time"]

1. d4 {[%clk 0:03:00.9]} 1... Nf6 {[%clk 0:02:55.2]} 2. Nf3 {[%clk 0:03:00.7]}
2... e6 {[%clk 0:02:55]} 3. g3 {[%clk 0:03:00]} 3... b6 {[%clk 0:02:54.7]} 4.
Bg2 {[%clk 0:02:59.8]} 4... Bb7 {[%clk 0:02:55.1]} 5. O-O {[%clk 0:03:00.3]}
5... c5 {[%clk 0:02:54.9]} 6. c4 {[%clk 0:03:00]} 6... cxd4 {[%clk 0:02:54.7]}
7. Qxd4 {[%clk 0:03:00.9]} 7... d6 {[%clk 0:02:54.3]} 8. Nc3 {[%clk 0:03:00.2]}
8... a6 {[%clk 0:02:53.7]} 9. b3 {[%clk 0:02:48.2]} 9... Nbd7 {[%clk 0:02:54]}
10. Ba3 {[%clk 0:02:47.1]} 10... Nc5 {[%clk 0:02:53.3]} 11. Rad1 {[%clk
0:02:45.2]} 11... Be7 {[%clk 0:02:52.7]} 12. Ng5 {[%clk 0:02:24.5]} 12... Bxg2
{[%clk 0:02:49.8]} 13. Kxg2 {[%clk 0:02:25.4]} 13... Qc7 {[%clk 0:02:50.1]} 14.
Nge4 {[%clk 0:02:16]} 14... O-O {[%clk 0:02:48.3]} 15. Kg1 {[%clk 0:02:09.2]}
15... Rfd8 {[%clk 0:02:47.6]} 16. Nxc5 {[%clk 0:01:55.5]} 16... bxc5 {[%clk
0:02:37.5]} 17. Qd3 {[%clk 0:01:49]} 17... Ng4 {[%clk 0:02:32]} 18. Qe4 {[%clk
0:01:41.8]} 18... Ne5 {[%clk 0:02:29.4]} 19. Bb2 {[%clk 0:01:29.5]} 19... Bf6
{[%clk 0:02:17.8]} 20. Rd2 {[%clk 0:01:26.5]} 20... Nc6 {[%clk 0:02:13.5]} 21.
Rfd1 {[%clk 0:01:22.9]} 21... Rd7 {[%clk 0:01:57.4]} 22. e3 {[%clk 0:01:18.1]}
22... Rad8 {[%clk 0:01:56]} 23. Qg4 {[%clk 0:01:10.5]} 23... Kh8 {[%clk
0:01:49]} 24. h4 {[%clk 0:01:05.3]} 24... Be5 {[%clk 0:01:48.1]} 25. Qe4 {[%clk
0:00:40.3]} 25... f5 {[%clk 0:01:47.4]} 26. Qf3 {[%clk 0:00:38.3]} 26... Bf6
{[%clk 0:01:47.5]} 27. Na4 {[%clk 0:00:29.5]} 27... Bxb2 {[%clk 0:01:44.7]} 28.
Nxb2 {[%clk 0:00:30.4]} 28... Ne5 {[%clk 0:01:44.6]} 29. Qg2 {[%clk 0:00:30.2]}
29... Kg8 {[%clk 0:01:40.7]} 30. Nd3 {[%clk 0:00:29.9]} 30... Ng4 {[%clk
0:01:40.6]} 31. Nf4 {[%clk 0:00:28.4]} 31... Re8 {[%clk 0:01:39.2]} 32. e4
{[%clk 0:00:24.3]} 32... g6 {[%clk 0:01:32.1]} 33. h5 {[%clk 0:00:24]} 33... g5
{[%clk 0:01:24.7]} 34. Nh3 {[%clk 0:00:18.4]} 34... h6 {[%clk 0:00:33.9]} 35.
Re2 {[%clk 0:00:17.1]} 35... fxe4 {[%clk 0:00:23.8]} 36. Qxe4 {[%clk 0:00:15.3]}
36... Ne5 {[%clk 0:00:23.3]} 37. f4 {[%clk 0:00:09.7]} 37... gxf4 {[%clk
0:00:22.8]} 38. gxf4 {[%clk 0:00:09.7]} 38... Rg7+ {[%clk 0:00:21.6]} 39. Rg2
{[%clk 0:00:09.3]} 39... Ng4 {[%clk 0:00:17.1]} 40. Kh1 {[%clk 0:00:08.8]} 40...
Qf7 {[%clk 0:00:14.1]} 41. Rdg1 {[%clk 0:00:08.1]} 41... Qxh5 {[%clk 0:00:13.9]}
42. Qf3 {[%clk 0:00:07.3]} 42... Kh8 {[%clk 0:00:06.3]} 43. Rxg4 {[%clk
0:00:06.6]} 43... Reg8 {[%clk 0:00:06.8]} 44. Rxg7 {[%clk 0:00:06]} 44... Qxf3+
{[%clk 0:00:06.5]} 0-1

[Event "*** Titled Tuesday Blitz"]
[Site "Chess.com"]
[Date "2021.04.06"]
[Round "11"]
[White "WinOrTilt"]
[Black "morte-negra"]
[Result "1-0"]
[WhiteElo "2225"]
[BlackElo "1966"]
[TimeControl "180+1"]
[EndTime "12:07:59 PDT"]
[Termination "WinOrTilt won on time"]

1. d4 {[%clk 0:03:00]} 1... Nf6 {[%clk 0:02:56.7]} 2. Nf3 {[%clk 0:03:00.3]}
2... c5 {[%clk 0:02:55.3]} 3. e3 {[%clk 0:03:00.7]} 3... e6 {[%clk 0:02:53.6]}
4. Bd3 {[%clk 0:02:59.7]} 4... a6 {[%clk 0:02:53.6]} 5. O-O {[%clk 0:02:59.4]}
5... Be7 {[%clk 0:02:51.8]} 6. Nbd2 {[%clk 0:02:59.7]} 6... d5 {[%clk
0:02:52.2]} 7. b3 {[%clk 0:02:59.6]} 7... b5 {[%clk 0:02:52]} 8. c3 {[%clk
0:02:57.4]} 8... c4 {[%clk 0:02:50.6]} 9. Bc2 {[%clk 0:02:57.7]} 9... Bb7 {[%clk
0:02:49]} 10. Bb2 {[%clk 0:02:57.9]} 10... O-O {[%clk 0:02:48.2]} 11. Ne5 {[%clk
0:02:58.1]} 11... Nbd7 {[%clk 0:02:46.8]} 12. f4 {[%clk 0:02:58.3]} 12... Re8
{[%clk 0:02:40]} 13. Qf3 {[%clk 0:02:57.2]} 13... Nf8 {[%clk 0:02:39.4]} 14. g4
{[%clk 0:02:57.2]} 14... Ng6 {[%clk 0:02:36.9]} 15. g5 {[%clk 0:02:56.1]} 15...
Ne4 {[%clk 0:02:27.8]} 16. Nxe4 {[%clk 0:02:55.1]} 16... dxe4 {[%clk 0:02:27.6]}
17. Bxe4 {[%clk 0:02:56]} 17... Bxe4 {[%clk 0:02:27.2]} 18. Qxe4 {[%clk
0:02:56.9]} 18... Bd6 {[%clk 0:02:18.8]} 19. Nxg6 {[%clk 0:02:47.5]} 19... hxg6
{[%clk 0:02:17.4]} 20. Rad1 {[%clk 0:02:40.6]} 20... Qc7 {[%clk 0:02:12.3]} 21.
h4 {[%clk 0:02:39.8]} 21... cxb3 {[%clk 0:01:51.7]} 22. axb3 {[%clk 0:02:39.1]}
22... Rac8 {[%clk 0:01:49.4]} 23. Qf3 {[%clk 0:02:35.6]} 23... Qe7 {[%clk
0:01:45.1]} 24. h5 {[%clk 0:02:34.8]} 24... gxh5 {[%clk 0:01:38.5]} 25. Qxh5
{[%clk 0:02:35.7]} 25... Qb7 {[%clk 0:01:31.1]} 26. Rf2 {[%clk 0:02:28.9]} 26...
Qe4 {[%clk 0:01:19.9]} 27. Qh3 {[%clk 0:02:28]} 27... Kf8 {[%clk 0:01:05]} 28.
f5 {[%clk 0:02:05.6]} 28... Ke7 {[%clk 0:01:00.7]} 29. Qf3 {[%clk 0:01:54.6]}
29... Qh4 {[%clk 0:00:44.7]} 30. fxe6 {[%clk 0:01:47.8]} 30... Qxg5+ {[%clk
0:00:21.4]} 31. Rg2 {[%clk 0:01:47.5]} 31... Qf6 {[%clk 0:00:19]} 32. Qxf6+
{[%clk 0:01:44.2]} 32... gxf6 {[%clk 0:00:18.3]} 33. exf7 {[%clk 0:01:45.1]}
33... Kxf7 {[%clk 0:00:18]} 34. Re1 {[%clk 0:01:40.6]} 34... Bf4 {[%clk
0:00:16.6]} 35. e4 {[%clk 0:01:37.4]} 35... Re7 {[%clk 0:00:13.2]} 36. Kf2
{[%clk 0:01:35.1]} 36... Rce8 {[%clk 0:00:11.8]} 37. Kf3 {[%clk 0:01:35.1]}
37... Bg5 {[%clk 0:00:11.6]} 38. Ba3 {[%clk 0:01:23.1]} 38... Re6 {[%clk
0:00:09.3]} 39. Bc5 {[%clk 0:01:19.9]} 39... Kg6 {[%clk 0:00:08.9]} 40. c4
{[%clk 0:01:14.6]} 40... bxc4 {[%clk 0:00:07.5]} 41. bxc4 {[%clk 0:01:15.5]}
41... Rb8 {[%clk 0:00:06.3]} 42. Kg4 {[%clk 0:00:59.5]} 42... Rb3 {[%clk
0:00:06.1]} 43. Rg3 {[%clk 0:00:53.6]} 43... Rb2 {[%clk 0:00:04.7]} 44. d5
{[%clk 0:00:32.7]} 44... Re8 {[%clk 0:00:03.2]} 45. Bd4 {[%clk 0:00:30]} 45...
Rd2 {[%clk 0:00:02.1]} 46. Bc3 {[%clk 0:00:25.3]} 46... Rf2 {[%clk 0:00:01.2]}
47. Rf3 {[%clk 0:00:16.7]} 47... Rh8 {[%clk 0:00:01.6]} 48. Rxf2 {[%clk
0:00:16]} 1-0

[Event "*** Titled Tuesday Blitz"]
[Site "Chess.com"]
[Date "2021.04.06"]
[Round "11"]
[White "ChronicUnhappiness"]
[Black "Kale36"]
[Result "1-0"]
[WhiteElo "2328"]
[BlackElo "2390"]
[TimeControl "180+1"]
[EndTime "12:08:00 PDT"]
[Termination "ChronicUnhappiness won by checkmate"]

1. d4 {[%clk 0:03:00.9]} 1... Nc6 {[%clk 0:02:57.2]} 2. Nf3 {[%clk 0:02:59.4]}
2... d6 {[%clk 0:02:57]} 3. e4 {[%clk 0:02:57]} 3... g6 {[%clk 0:02:56.1]} 4. d5
{[%clk 0:02:52.5]} 4... Ne5 {[%clk 0:02:49.6]} 5. Nxe5 {[%clk 0:02:42.2]} 5...
dxe5 {[%clk 0:02:50.5]} 6. Bb5+ {[%clk 0:02:42.3]} 6... Bd7 {[%clk 0:02:48.8]}
7. Bxd7+ {[%clk 0:02:39.5]} 7... Qxd7 {[%clk 0:02:49.7]} 8. c4 {[%clk
0:02:36.5]} 8... e6 {[%clk 0:02:36.2]} 9. O-O {[%clk 0:02:33.4]} 9... Nf6 {[%clk
0:02:28.7]} 10. Nc3 {[%clk 0:02:32.1]} 10... Bg7 {[%clk 0:01:53.5]} 11. Qb3
{[%clk 0:02:13.4]} 11... c6 {[%clk 0:01:27.3]} 12. dxc6 {[%clk 0:02:05.9]} 12...
Qxc6 {[%clk 0:01:22.9]} 13. f3 {[%clk 0:02:00]} 13... O-O {[%clk 0:01:22.5]} 14.
Be3 {[%clk 0:01:59]} 14... Rfd8 {[%clk 0:01:18.3]} 15. Rfd1 {[%clk 0:01:55.5]}
15... Nd7 {[%clk 0:01:09.5]} 16. Qb5 {[%clk 0:01:50.3]} 16... Bf8 {[%clk
0:01:05.5]} 17. Qxc6 {[%clk 0:01:46.8]} 17... bxc6 {[%clk 0:01:06.4]} 18. Na4
{[%clk 0:01:46.3]} 18... Be7 {[%clk 0:00:54.1]} 19. b3 {[%clk 0:01:45.4]} 19...
Kf8 {[%clk 0:00:43.3]} 20. Rd3 {[%clk 0:01:39.9]} 20... Ke8 {[%clk 0:00:42.8]}
21. Rad1 {[%clk 0:01:37.3]} 21... Nf8 {[%clk 0:00:42.9]} 22. Rxd8+ {[%clk
0:01:33.1]} 22... Bxd8 {[%clk 0:00:43.1]} 23. Kf2 {[%clk 0:01:29.3]} 23... Nd7
{[%clk 0:00:39.7]} 24. Ke2 {[%clk 0:01:28.6]} 24... Bc7 {[%clk 0:00:36.1]} 25.
Nc5 {[%clk 0:01:18.4]} 25... Nxc5 {[%clk 0:00:34.8]} 26. Bxc5 {[%clk 0:01:19.3]}
26... a6 {[%clk 0:00:32.7]} 27. Bd6 {[%clk 0:01:12.5]} 27... Bxd6 {[%clk
0:00:27.3]} 28. Rxd6 {[%clk 0:01:11.4]} 28... Rc8 {[%clk 0:00:28.2]} 29. c5
{[%clk 0:01:06.5]} 29... Ke7 {[%clk 0:00:22.9]} 30. Kd3 {[%clk 0:01:05.5]} 30...
f5 {[%clk 0:00:21.9]} 31. b4 {[%clk 0:01:02.6]} 31... g5 {[%clk 0:00:21.3]} 32.
a4 {[%clk 0:01:01]} 32... h5 {[%clk 0:00:20.9]} 33. Kc4 {[%clk 0:00:53.2]} 33...
g4 {[%clk 0:00:20.7]} 34. h3 {[%clk 0:00:51.4]} 34... Rc7 {[%clk 0:00:17.8]} 35.
exf5 {[%clk 0:00:33.8]} 35... exf5 {[%clk 0:00:16.7]} 36. Rh6 {[%clk 0:00:32.8]}
36... Rd7 {[%clk 0:00:17]} 37. Rxh5 {[%clk 0:00:19.7]} 37... gxf3 {[%clk
0:00:17.2]} 38. gxf3 {[%clk 0:00:19.1]} 38... Rd4+ {[%clk 0:00:17.4]} 39. Kc3
{[%clk 0:00:18.6]} 39... Kf6 {[%clk 0:00:17.8]} 40. Rh6+ {[%clk 0:00:18]} 40...
Kg5 {[%clk 0:00:18.1]} 41. Rxc6 {[%clk 0:00:18.2]} 41... Kf4 {[%clk 0:00:17.9]}
42. Rd6 {[%clk 0:00:15.4]} 42... Ke3 {[%clk 0:00:12.1]} 43. b5 {[%clk
0:00:06.9]} 43... axb5 {[%clk 0:00:11.6]} 44. axb5 {[%clk 0:00:06.3]} 44... f4
{[%clk 0:00:05.5]} 45. b6 {[%clk 0:00:05.8]} 45... Rxd6 {[%clk 0:00:04.3]} 46.
cxd6 {[%clk 0:00:05.5]} 46... e4 {[%clk 0:00:05.2]} 47. d7 {[%clk 0:00:02.9]}
47... exf3 {[%clk 0:00:05.4]} 48. d8=Q {[%clk 0:00:03]} 48... f2 {[%clk
0:00:06.3]} 49. Qd3# {[%clk 0:00:03.2]} 1-0

[Event "*** Titled Tuesday Blitz"]
[Site "Chess.com"]
[Date "2021.04.06"]
[Round "11"]
[White "akanga001"]
[Black "Pantata007"]
[Result "1-0"]
[WhiteElo "2059"]
[BlackElo "2237"]
[TimeControl "180+1"]
[EndTime "12:08:03 PDT"]
[Termination "akanga001 won on time"]

1. e4 {[%clk 0:02:52.7]} 1... e5 {[%clk 0:02:59.2]} 2. Nf3 {[%clk 0:02:51.5]}
2... Nc6 {[%clk 0:02:59.5]} 3. Bb5 {[%clk 0:02:50.5]} 3... a6 {[%clk 0:02:59.1]}
4. Bxc6 {[%clk 0:02:50.1]} 4... dxc6 {[%clk 0:03:00]} 5. d4 {[%clk 0:02:49.4]}
5... exd4 {[%clk 0:02:59.5]} 6. Qxd4 {[%clk 0:02:48.9]} 6... Qxd4 {[%clk
0:02:59]} 7. Nxd4 {[%clk 0:02:48.3]} 7... Bd7 {[%clk 0:02:59.9]} 8. f3 {[%clk
0:02:42.6]} 8... O-O-O {[%clk 0:02:59.9]} 9. Be3 {[%clk 0:02:41.3]} 9... Ne7
{[%clk 0:02:52.5]} 10. Nc3 {[%clk 0:02:35.9]} 10... Ng6 {[%clk 0:02:52.2]} 11.
h4 {[%clk 0:02:33.2]} 11... Bb4 {[%clk 0:02:49.8]} 12. O-O-O {[%clk 0:02:29]}
12... Bxc3 {[%clk 0:02:47.5]} 13. bxc3 {[%clk 0:02:26.9]} 13... h5 {[%clk
0:02:41]} 14. Bf2 {[%clk 0:02:19.5]} 14... c5 {[%clk 0:02:15.2]} 15. Nb3 {[%clk
0:02:18.2]} 15... b6 {[%clk 0:02:15.1]} 16. g3 {[%clk 0:02:16.5]} 16... f5
{[%clk 0:02:04.8]} 17. exf5 {[%clk 0:02:09]} 17... Bxf5 {[%clk 0:02:04]} 18.
Rxd8+ {[%clk 0:02:05.5]} 18... Rxd8 {[%clk 0:02:03.4]} 19. Rd1 {[%clk
0:02:06.4]} 19... Ne5 {[%clk 0:01:57]} 20. Rxd8+ {[%clk 0:01:59.7]} 20... Kxd8
{[%clk 0:01:57.9]} 21. Nd2 {[%clk 0:01:59.8]} 21... Kd7 {[%clk 0:01:50.9]} 22.
f4 {[%clk 0:01:57.8]} 22... Ng4 {[%clk 0:01:49.7]} 23. Be1 {[%clk 0:01:52.8]}
23... Ne3 {[%clk 0:01:42.8]} 24. Nf3 {[%clk 0:01:44.6]} 24... Nxc2 {[%clk
0:01:31.7]} 25. Bd2 {[%clk 0:01:43.8]} 25... Ke6 {[%clk 0:01:27.1]} 26. Ng5+
{[%clk 0:01:38.4]} 26... Kd5 {[%clk 0:01:25.6]} 27. Nf7 {[%clk 0:01:25.6]} 27...
Na3 {[%clk 0:01:09.9]} 28. Ne5 {[%clk 0:01:15.6]} 28... b5 {[%clk 0:00:59.7]}
29. Kb2 {[%clk 0:01:12.1]} 29... Nc2 {[%clk 0:00:51.3]} 30. c4+ {[%clk
0:01:07.6]} 30... bxc4 {[%clk 0:00:42.4]} 31. Bc3 {[%clk 0:01:05.6]} 31... Nd4
{[%clk 0:00:40.6]} 32. Be1 {[%clk 0:00:53.3]} 32... Bd3 {[%clk 0:00:38.5]} 33.
Kc3 {[%clk 0:00:51.2]} 33... Nb5+ {[%clk 0:00:31.8]} 34. Kd2 {[%clk 0:00:46.1]}
34... Ke4 {[%clk 0:00:32.7]} 35. a4 {[%clk 0:00:42.6]} 35... c3+ {[%clk
0:00:20]} 36. Kc1 {[%clk 0:00:36.4]} 36... Nd4 {[%clk 0:00:20]} 37. Bxc3 {[%clk
0:00:35.4]} 37... Ne2+ {[%clk 0:00:20.1]} 38. Kd2 {[%clk 0:00:34.9]} 38... Nxc3
{[%clk 0:00:12]} 39. Kxc3 {[%clk 0:00:33.2]} 39... Bf1 {[%clk 0:00:09.8]} 40.
Nd7 {[%clk 0:00:30.7]} 40... c4 {[%clk 0:00:08.2]} 41. Nc5+ {[%clk 0:00:29.9]}
41... Kf3 {[%clk 0:00:07.3]} 42. Ne6 {[%clk 0:00:27.3]} 42... g6 {[%clk
0:00:06.1]} 43. Nf8 {[%clk 0:00:18.5]} 43... Bd3 {[%clk 0:00:06.2]} 44. Ne6
{[%clk 0:00:14.9]} 44... Kxg3 {[%clk 0:00:06.3]} 45. Nc5 {[%clk 0:00:12.5]}
45... Kxf4 {[%clk 0:00:05.9]} 46. Nxa6 {[%clk 0:00:13.4]} 46... c6 {[%clk
0:00:05.3]} 47. Nc5 {[%clk 0:00:14.3]} 47... Kg4 {[%clk 0:00:05]} 48. a5 {[%clk
0:00:15.2]} 1-0

[Event "*** Titled Tuesday Blitz"]
[Site "Chess.com"]
[Date "2021.04.06"]
[Round "11"]
[White "jacky72"]
[Black "swisspower96"]
[Result "1-0"]
[WhiteElo "2726"]
[BlackElo "2582"]
[TimeControl "180+1"]
[EndTime "12:08:06 PDT"]
[Termination "jacky72 won by checkmate"]

1. d4 {[%clk 0:03:00.9]} 1... Nf6 {[%clk 0:02:59.9]} 2. c4 {[%clk 0:02:59.9]}
2... e6 {[%clk 0:02:59]} 3. Nf3 {[%clk 0:02:59.8]} 3... d5 {[%clk 0:02:59]} 4.
Nc3 {[%clk 0:03:00.3]} 4... Bb4 {[%clk 0:02:59]} 5. Bg5 {[%clk 0:03:00.6]} 5...
h6 {[%clk 0:02:58.2]} 6. Bh4 {[%clk 0:03:00.7]} 6... dxc4 {[%clk 0:02:46.4]} 7.
a4 {[%clk 0:02:58.8]} 7... c5 {[%clk 0:02:37.6]} 8. e3 {[%clk 0:02:57.7]} 8...
cxd4 {[%clk 0:02:29.4]} 9. exd4 {[%clk 0:02:57.9]} 9... O-O {[%clk 0:02:27.8]}
10. Bxc4 {[%clk 0:02:56.5]} 10... Nc6 {[%clk 0:02:27.6]} 11. O-O {[%clk
0:02:55.7]} 11... Be7 {[%clk 0:02:27.9]} 12. Rc1 {[%clk 0:02:47.7]} 12... Nd5
{[%clk 0:02:27.5]} 13. Bxe7 {[%clk 0:02:46]} 13... Ncxe7 {[%clk 0:02:26.3]} 14.
Nxd5 {[%clk 0:02:41.6]} 14... Nxd5 {[%clk 0:02:26.1]} 15. Ne5 {[%clk 0:02:40]}
15... Qd6 {[%clk 0:02:17]} 16. Qd3 {[%clk 0:02:36]} 16... Bd7 {[%clk 0:02:13]}
17. Bb3 {[%clk 0:02:18.7]} 17... Rfd8 {[%clk 0:02:10.6]} 18. Bc2 {[%clk
0:02:12.7]} 18... Nf6 {[%clk 0:02:07.1]} 19. Rfd1 {[%clk 0:02:10.6]} 19... Be8
{[%clk 0:02:03.6]} 20. b3 {[%clk 0:02:04.3]} 20... Rac8 {[%clk 0:02:03]} 21. h3
{[%clk 0:02:00.2]} 21... Rc7 {[%clk 0:02:03.2]} 22. Qe3 {[%clk 0:01:47.4]} 22...
Rdc8 {[%clk 0:01:50.3]} 23. Nc4 {[%clk 0:01:47.1]} 23... Qb4 {[%clk 0:01:41.6]}
24. Bd3 {[%clk 0:01:26.5]} 24... Kf8 {[%clk 0:01:38.4]} 25. Bb1 {[%clk
0:01:23.1]} 25... Bxa4 {[%clk 0:01:29.3]} 26. Ne5 {[%clk 0:01:18.7]} 26... Be8
{[%clk 0:01:24.1]} 27. Rc4 {[%clk 0:01:14.5]} 27... Qd6 {[%clk 0:01:10.1]} 28.
Rdc1 {[%clk 0:01:11.6]} 28... Bb5 {[%clk 0:01:03.6]} 29. Rc5 {[%clk 0:01:07.6]}
29... b6 {[%clk 0:00:58.4]} 30. Rxc7 {[%clk 0:01:04.2]} 30... Rxc7 {[%clk
0:00:59.3]} 31. Rd1 {[%clk 0:01:00.5]} 31... Qb4 {[%clk 0:00:51.3]} 32. Qf4
{[%clk 0:00:55]} 32... Nd5 {[%clk 0:00:37.9]} 33. Qh4 {[%clk 0:00:50]} 33... Qe7
{[%clk 0:00:35.7]} 34. Qg4 {[%clk 0:00:38.5]} 34... Qg5 {[%clk 0:00:28.9]} 35.
Qe4 {[%clk 0:00:29.4]} 35... Nc3 {[%clk 0:00:15.5]} 36. Qa8+ {[%clk 0:00:29.1]}
36... Ke7 {[%clk 0:00:15.9]} 37. Re1 {[%clk 0:00:29.6]} 37... Qd2 {[%clk
0:00:13.6]} 38. Nf3 {[%clk 0:00:24.6]} 38... Qf4 {[%clk 0:00:10]} 39. d5 {[%clk
0:00:18.9]} 39... Ne2+ {[%clk 0:00:06.6]} 40. Kh1 {[%clk 0:00:17.2]} 40... Rd7
{[%clk 0:00:06.6]} 41. dxe6 {[%clk 0:00:17.1]} 41... fxe6 {[%clk 0:00:07.2]} 42.
Qg8 {[%clk 0:00:17]} 42... Kf6 {[%clk 0:00:06]} 43. Qf8+ {[%clk 0:00:16.4]}
43... Rf7 {[%clk 0:00:06.4]} 44. Qd8+ {[%clk 0:00:16]} 44... Re7 {[%clk
0:00:06.8]} 45. Rd1 {[%clk 0:00:11.6]} 45... Qc7 {[%clk 0:00:06.9]} 46. Qf8+
{[%clk 0:00:11.3]} 46... Rf7 {[%clk 0:00:07.4]} 47. Qb4 {[%clk 0:00:11.8]} 47...
Qc5 {[%clk 0:00:07.1]} 48. Qh4+ {[%clk 0:00:11.3]} 48... g5 {[%clk 0:00:04.6]}
49. Qxh6+ {[%clk 0:00:11.8]} 49... Ke7 {[%clk 0:00:05.4]} 50. Nxg5 {[%clk
0:00:12.3]} 50... Rxf2 {[%clk 0:00:05.6]} 51. Qxe6+ {[%clk 0:00:11.8]} 51... Kf8
{[%clk 0:00:05.7]} 52. Rd8+ {[%clk 0:00:12.4]} 52... Kg7 {[%clk 0:00:06.3]} 53.
Rg8# {[%clk 0:00:12.3]} 1-0

[Event "*** Titled Tuesday Blitz"]
[Site "Chess.com"]
[Date "2021.04.06"]
[Round "11"]
[White "UKR_Master"]
[Black "Rytenko_V"]
[Result "1-0"]
[WhiteElo "2488"]
[BlackElo "2368"]
[TimeControl "180+1"]
[EndTime "12:08:07 PDT"]
[Termination "UKR_Master won on time"]

1. e4 {[%clk 0:03:00.9]} 1... e6 {[%clk 0:03:00]} 2. d4 {[%clk 0:03:00.5]} 2...
d5 {[%clk 0:03:00.9]} 3. e5 {[%clk 0:03:01.2]} 3... c5 {[%clk 0:03:00.8]} 4. c3
{[%clk 0:03:02]} 4... Qb6 {[%clk 0:03:01]} 5. Nf3 {[%clk 0:03:02.8]} 5... Bd7
{[%clk 0:03:01.5]} 6. Be2 {[%clk 0:02:47.8]} 6... Bb5 {[%clk 0:03:00.9]} 7. O-O
{[%clk 0:02:47.8]} 7... Bxe2 {[%clk 0:02:59.9]} 8. Qxe2 {[%clk 0:02:48.5]} 8...
Nc6 {[%clk 0:03:00.5]} 9. dxc5 {[%clk 0:02:46.9]} 9... Bxc5 {[%clk 0:02:59.9]}
10. Bf4 {[%clk 0:02:46.8]} 10... a5 {[%clk 0:02:51.5]} 11. a4 {[%clk 0:02:45.3]}
11... Nge7 {[%clk 0:02:45.7]} 12. Na3 {[%clk 0:02:43.5]} 12... Ng6 {[%clk
0:02:28.6]} 13. Bg3 {[%clk 0:02:40.4]} 13... Bxa3 {[%clk 0:02:08.2]} 14. Rxa3
{[%clk 0:02:37.9]} 14... O-O {[%clk 0:02:08.6]} 15. Qb5 {[%clk 0:02:34.7]} 15...
Qxb5 {[%clk 0:01:45.5]} 16. axb5 {[%clk 0:02:33.6]} 16... Nce7 {[%clk
0:01:46.4]} 17. Nd4 {[%clk 0:02:12.4]} 17... b6 {[%clk 0:01:36.6]} 18. f4 {[%clk
0:02:10.4]} 18... Rac8 {[%clk 0:01:26.4]} 19. Rf3 {[%clk 0:01:49.3]} 19... Rc4
{[%clk 0:01:25.6]} 20. Bf2 {[%clk 0:01:48]} 20... Rb8 {[%clk 0:01:10.2]} 21. g3
{[%clk 0:01:45.9]} 21... Nf8 {[%clk 0:01:07.1]} 22. Kf1 {[%clk 0:01:38.2]} 22...
h5 {[%clk 0:01:06.9]} 23. Ke2 {[%clk 0:01:38.1]} 23... Nd7 {[%clk 0:01:07.5]}
24. Ra1 {[%clk 0:01:23.1]} 24... Rcc8 {[%clk 0:00:49.3]} 25. Nb3 {[%clk
0:01:18.3]} 25... g6 {[%clk 0:00:45.1]} 26. Rd3 {[%clk 0:01:12.3]} 26... Nf5
{[%clk 0:00:43.2]} 27. Rdd1 {[%clk 0:01:10.9]} 27... Kg7 {[%clk 0:00:39.9]} 28.
Kf3 {[%clk 0:01:08.5]} 28... Rc4 {[%clk 0:00:36.3]} 29. h3 {[%clk 0:01:06.4]}
29... Rh8 {[%clk 0:00:26.8]} 30. Nd2 {[%clk 0:01:04.1]} 30... Rcc8 {[%clk
0:00:21.7]} 31. Nb3 {[%clk 0:01:04.5]} 31... Rc4 {[%clk 0:00:21]} 32. Rd2 {[%clk
0:00:43.7]} 32... Rcc8 {[%clk 0:00:20.1]} 33. Ra4 {[%clk 0:00:38.1]} 33... Rc7
{[%clk 0:00:18]} 34. Rd1 {[%clk 0:00:36.7]} 34... Rhc8 {[%clk 0:00:12.1]} 35. g4
{[%clk 0:00:36.5]} 35... hxg4+ {[%clk 0:00:11.6]} 36. hxg4 {[%clk 0:00:37.4]}
36... Ne7 {[%clk 0:00:10.8]} 37. Bd4 {[%clk 0:00:31.3]} 37... Rh8 {[%clk
0:00:09.6]} 38. Kg3 {[%clk 0:00:27.1]} 38... Rh7 {[%clk 0:00:09.5]} 39. Raa1
{[%clk 0:00:25.9]} 39... Rc8 {[%clk 0:00:08.8]} 40. Rh1 {[%clk 0:00:24.4]} 40...
Rch8 {[%clk 0:00:08.9]} 41. Rxh7+ {[%clk 0:00:24.3]} 41... Rxh7 {[%clk
0:00:09.8]} 42. Nd2 {[%clk 0:00:22.8]} 42... g5 {[%clk 0:00:06.7]} 43. f5 {[%clk
0:00:20.6]} 43... exf5 {[%clk 0:00:03.5]} 44. e6+ {[%clk 0:00:21.1]} 44... Nf6
{[%clk 0:00:04.1]} 45. exf7 {[%clk 0:00:21.3]} 45... Kxf7 {[%clk 0:00:04.2]} 46.
Nf3 {[%clk 0:00:20.3]} 46... Ne4+ {[%clk 0:00:04]} 47. Kg2 {[%clk 0:00:17.8]}
47... fxg4 {[%clk 0:00:03.1]} 48. Ne5+ {[%clk 0:00:18.4]} 48... Ke6 {[%clk
0:00:03.4]} 49. Nxg4 {[%clk 0:00:18.6]} 49... Nf5 {[%clk 0:00:03]} 50. Rf1
{[%clk 0:00:17.1]} 50... Rh4 {[%clk 0:00:01.9]} 51. Ne5 {[%clk 0:00:16.4]} 51...
Rf4 {[%clk 0:00:02.1]} 52. Rh1 {[%clk 0:00:16]} 1-0